[Event "Titled Tuesday Blitz June 22 2021"]
[White "Hammer, Jon Ludvig"]
[Black "Quparadze, Giga"]
[WhiteFideId "1503707"]
[BlackFideId "13602250"]
[WhiteElo "2607"]
[BlackElo "2658"]
[Result "1-0"]
[Round "06"]
[TimeControl "180+1"]
[Date "2021.06.22"]
[WhiteClock "0:00:07"]
[BlackClock "0:00:16"]

1. e4 {[%clk 0:03:00]}  c5 {[%clk 0:02:59]} 2. Nf3 {[%clk 0:03:00]}  e6 {[%clk 0:02:59]} 3. g3 {[%clk 0:03:00]}  Nc6 {[%clk 0:02:59]} 4. Bg2 {[%clk 0:03:00]}  Nf6 {[%clk 0:02:59]} 5. Nc3 {[%clk 0:03:00]}  d5 {[%clk 0:02:58]} 6. exd5 {[%clk 0:02:59]}  exd5 {[%clk 0:02:59]} 7. d4 {[%clk 0:02:58]}  Bg4 {[%clk 0:02:57]} 8. O-O {[%clk 0:02:58]}  Nxd4 {[%clk 0:02:54]} 9. Qe1+ {[%clk 0:02:55]}  Be6 {[%clk 0:02:53]} 10. Nxd4 {[%clk 0:02:37]}  cxd4 {[%clk 0:02:54]} 11. Ne2 {[%clk 0:02:33]}  Qb6 {[%clk 0:02:52]} 12. b3 {[%clk 0:02:06]}  Bc5 {[%clk 0:02:44]} 13. Bb2 {[%clk 0:02:03]}  O-O {[%clk 0:02:42]} 14. Qd1 {[%clk 0:01:55]}  Bg4 {[%clk 0:02:41]} 15. h3 {[%clk 0:01:55]}  Bxe2 {[%clk 0:02:38]} 16. Qxe2 {[%clk 0:01:56]}  Rfe8 {[%clk 0:02:38]} 17. Qd3 {[%clk 0:01:56]}  Rac8 {[%clk 0:02:34]} 18. Rad1 {[%clk 0:01:55]}  h6 {[%clk 0:02:34]} 19. Rfe1 {[%clk 0:01:50]}  Rxe1+ {[%clk 0:02:31]} 20. Rxe1 {[%clk 0:01:51]}  Qa5 {[%clk 0:02:32]} 21. Ra1 {[%clk 0:01:48]}  Qb6 {[%clk 0:02:21]} 22. a3 {[%clk 0:01:47]}  a5 {[%clk 0:02:20]} 23. Re1 {[%clk 0:01:47]}  Qd6 {[%clk 0:02:16]} 24. Ra1 {[%clk 0:01:36]}  Qb6 {[%clk 0:02:09]} 25. Rd1 {[%clk 0:01:30]}  Qc7 {[%clk 0:02:07]} 26. Re1 {[%clk 0:01:21]}  Bb6 {[%clk 0:02:03]} 27. Re2 {[%clk 0:01:19]}  Qc5 {[%clk 0:02:02]} 28. Bf3 {[%clk 0:01:17]}  h5 {[%clk 0:02:00]} 29. Kg2 {[%clk 0:01:16]}  Qd6 {[%clk 0:01:53]} 30. h4 {[%clk 0:01:09]}  Qc5 {[%clk 0:01:47]} 31. Qf5 {[%clk 0:01:05]}  Qc6 {[%clk 0:01:34]} 32. Bc1 {[%clk 0:00:46]}  g6 {[%clk 0:01:29]} 33. Qd3 {[%clk 0:00:46]}  Ne4 {[%clk 0:01:21]} 34. Bb2 {[%clk 0:00:42]}  Qc5 {[%clk 0:01:01]} 35. Bxe4 {[%clk 0:00:38]}  dxe4 {[%clk 0:01:02]} 36. Qxe4 {[%clk 0:00:36]}  Qb5 {[%clk 0:01:02]} 37. Rd2 {[%clk 0:00:33]}  a4 {[%clk 0:01:02]} 38. b4 {[%clk 0:00:26]}  Qc6 {[%clk 0:00:48]} 39. Qxc6 {[%clk 0:00:25]}  Rxc6 {[%clk 0:00:49]} 40. Kf3 {[%clk 0:00:26]}  f5 {[%clk 0:00:48]} 41. Ke2 {[%clk 0:00:26]}  Re6+ {[%clk 0:00:39]} 42. Kd3 {[%clk 0:00:26]}  Re1 {[%clk 0:00:39]} 43. Bxd4 {[%clk 0:00:21]}  Bxd4 {[%clk 0:00:39]} 44. Kxd4 {[%clk 0:00:22]}  Ra1 {[%clk 0:00:39]} 45. Rd3 {[%clk 0:00:21]}  Kf7 {[%clk 0:00:38]} 46. Kc5 {[%clk 0:00:20]}  Rf1 {[%clk 0:00:35]} 47. f4 {[%clk 0:00:19]}  Rf2 {[%clk 0:00:30]} 48. Rc3 {[%clk 0:00:19]}  Ke6 {[%clk 0:00:28]} 49. Kb6 {[%clk 0:00:19]}  Kd5 {[%clk 0:00:28]} 50. Kxb7 {[%clk 0:00:19]}  Kd4 {[%clk 0:00:29]} 51. Rc6 {[%clk 0:00:11]}  Rg2 {[%clk 0:00:28]} 52. Rxg6 {[%clk 0:00:09]}  Rxc2 {[%clk 0:00:27]} 53. Ra6 {[%clk 0:00:08]}  Rc3 {[%clk 0:00:22]} 54. Rxa4 {[%clk 0:00:08]}  Rxg3 {[%clk 0:00:22]} 55. b5+ {[%clk 0:00:08]}  Kc5 {[%clk 0:00:23]} 56. b6 {[%clk 0:00:08]}  Rb3 {[%clk 0:00:16]} 57. Ra5+ {[%clk 0:00:07]}  Kd6 {[%clk 0:00:16]} 58. Rxf5 {[%clk 0:00:05]}  Rxa3 {[%clk 0:00:17]} 59. Rxh5 {[%clk 0:00:05]}  Rb3 {[%clk 0:00:17]} 60. Rh6+ {[%clk 0:00:05]}  Kd7 {[%clk 0:00:17]} 61. h5 {[%clk 0:00:04]}  Rf3 {[%clk 0:00:16]} 62. Rf6 {[%clk 0:00:05]}  Ke7 {[%clk 0:00:16]} 63. Rf5 {[%clk 0:00:05]}  Ke6 {[%clk 0:00:16]} 64. Re5+ {[%clk 0:00:06]}  Kd6 {[%clk 0:00:17]} 65. h6 {[%clk 0:00:06]}  Rxf4 {[%clk 0:00:17]} 66. Rh5 {[%clk 0:00:06]}  Rf7+ {[%clk 0:00:17]} 67. Ka6 {[%clk 0:00:07]}  Rh7 {[%clk 0:00:17]} 68. b7 {[%clk 0:00:07]}  Rh8 {[%clk 0:00:16]} 69. Ka7 {[%clk 0:00:08]}  Rh7 {[%clk 0:00:16]} 70. Ka8 {[%clk 0:00:07]} 1-0


[Site "https://www.chess.com"]

[Event "Titled Tuesday Blitz June 22 2021"]
[White "Kamsky, Gata"]
[Black "Petriashvili, Nikoloz"]
[WhiteFideId "2000024"]
[BlackFideId "13611216"]
[WhiteElo "2644"]
[BlackElo "2430"]
[Result "1-0"]
[Round "06"]
[TimeControl "180+1"]
[Date "2021.06.22"]
[WhiteClock "0:00:18"]
[BlackClock "0:00:03"]

1. d4 {[%clk 0:03:00]}  Nf6 {[%clk 0:02:59]} 2. Nf3 {[%clk 0:03:00]}  g6 {[%clk 0:02:59]} 3. c3 {[%clk 0:02:59]}  Bg7 {[%clk 0:02:59]} 4. Bg5 {[%clk 0:03:00]}  O-O {[%clk 0:02:59]} 5. Nbd2 {[%clk 0:03:00]}  d6 {[%clk 0:02:59]} 6. e4 {[%clk 0:03:00]}  Nc6 {[%clk 0:02:59]} 7. Bd3 {[%clk 0:03:00]}  e5 {[%clk 0:02:58]} 8. O-O {[%clk 0:03:00]}  h6 {[%clk 0:02:58]} 9. Bh4 {[%clk 0:03:00]}  Bd7 {[%clk 0:02:58]} 10. Re1 {[%clk 0:02:59]}  Qe8 {[%clk 0:02:57]} 11. Nc4 {[%clk 0:02:54]}  a6 {[%clk 0:02:53]} 12. a4 {[%clk 0:02:49]}  Rb8 {[%clk 0:02:51]} 13. dxe5 {[%clk 0:02:45]}  dxe5 {[%clk 0:02:48]} 14. Ne3 {[%clk 0:02:44]}  Be6 {[%clk 0:02:37]} 15. b4 {[%clk 0:02:38]}  Nh5 {[%clk 0:02:21]} 16. Bc4 {[%clk 0:02:33]}  Nf4 {[%clk 0:02:12]} 17. Qb3 {[%clk 0:02:29]}  b5 {[%clk 0:01:55]} 18. axb5 {[%clk 0:02:28]}  axb5 {[%clk 0:01:56]} 19. Bxe6 {[%clk 0:02:27]}  fxe6 {[%clk 0:01:56]} 20. Rad1 {[%clk 0:02:02]}  g5 {[%clk 0:01:56]} 21. Bg3 {[%clk 0:02:02]}  Kh7 {[%clk 0:01:41]} 22. Qc2 {[%clk 0:01:51]}  Qh5 {[%clk 0:01:39]} 23. Bxf4 {[%clk 0:01:30]}  exf4 {[%clk 0:01:15]} 24. e5+ {[%clk 0:01:14]}  Kh8 {[%clk 0:01:14]} 25. Nf1 {[%clk 0:01:10]}  g4 {[%clk 0:01:14]} 26. Nd4 {[%clk 0:01:09]}  Nxd4 {[%clk 0:01:02]} 27. cxd4 {[%clk 0:01:09]}  f3 {[%clk 0:00:51]} 28. Ng3 {[%clk 0:01:08]}  Qf7 {[%clk 0:00:48]} 29. Ne4 {[%clk 0:00:50]}  fxg2 {[%clk 0:00:45]} 30. Re3 {[%clk 0:00:45]}  Rbd8 {[%clk 0:00:41]} 31. Rc3 {[%clk 0:00:42]}  Rd7 {[%clk 0:00:30]} 32. Kxg2 {[%clk 0:00:42]}  Rfd8 {[%clk 0:00:28]} 33. Rcd3 {[%clk 0:00:32]}  Qg6 {[%clk 0:00:25]} 34. Qe2 {[%clk 0:00:32]}  Rf7 {[%clk 0:00:23]} 35. Rg3 {[%clk 0:00:23]}  h5 {[%clk 0:00:23]} 36. h3 {[%clk 0:00:22]}  gxh3+ {[%clk 0:00:15]} 37. Kxh3 {[%clk 0:00:19]}  Qf5+ {[%clk 0:00:16]} 38. Kg2 {[%clk 0:00:19]}  Rdf8 {[%clk 0:00:16]} 39. Rh1 {[%clk 0:00:18]}  Bh6 {[%clk 0:00:05]} 40. Rxh5 {[%clk 0:00:18]}  Qh7 {[%clk 0:00:06]} 41. Nf6 {[%clk 0:00:17]}  Rxf6 {[%clk 0:00:06]} 42. exf6 {[%clk 0:00:18]}  Rxf6 {[%clk 0:00:07]} 43. Qe5 {[%clk 0:00:18]}  Qf7 {[%clk 0:00:03]} 44. Rxh6+ {[%clk 0:00:18]} 1-0


[Site "https://www.chess.com"]

[Event "Titled Tuesday Blitz June 22 2021"]
[White "Kovalev, Vladislav"]
[Black "Lagno, Kateryna"]
[WhiteFideId "13504398"]
[BlackFideId "14109336"]
[WhiteElo "2573"]
[BlackElo "2608"]
[Result "1-0"]
[Round "06"]
[TimeControl "180+1"]
[Date "2021.06.22"]
[WhiteClock "0:00:12"]
[BlackClock "0:00:02"]

1. e4 {[%clk 0:03:00]}  e5 {[%clk 0:03:00]} 2. Nf3 {[%clk 0:03:01]}  Nc6 {[%clk 0:03:00]} 3. Bb5 {[%clk 0:03:02]}  a6 {[%clk 0:03:01]} 4. Ba4 {[%clk 0:03:02]}  Nf6 {[%clk 0:03:01]} 5. O-O {[%clk 0:03:03]}  b5 {[%clk 0:03:02]} 6. Bb3 {[%clk 0:03:03]}  Bc5 {[%clk 0:03:02]} 7. c3 {[%clk 0:03:02]}  d6 {[%clk 0:03:03]} 8. a4 {[%clk 0:03:03]}  Rb8 {[%clk 0:03:02]} 9. d4 {[%clk 0:03:03]}  Bb6 {[%clk 0:03:03]} 10. axb5 {[%clk 0:02:50]}  axb5 {[%clk 0:03:04]} 11. Na3 {[%clk 0:02:50]}  O-O {[%clk 0:03:04]} 12. Nxb5 {[%clk 0:02:49]}  Bg4 {[%clk 0:03:04]} 13. Bc2 {[%clk 0:02:50]}  Qd7 {[%clk 0:02:57]} 14. Bg5 {[%clk 0:02:08]}  Nxe4 {[%clk 0:02:27]} 15. Bxe4 {[%clk 0:02:00]}  d5 {[%clk 0:02:28]} 16. Bd3 {[%clk 0:01:35]}  e4 {[%clk 0:02:21]} 17. Be2 {[%clk 0:01:35]}  exf3 {[%clk 0:02:11]} 18. Bxf3 {[%clk 0:01:36]}  Bxf3 {[%clk 0:02:08]} 19. Qxf3 {[%clk 0:01:36]}  h6 {[%clk 0:02:06]} 20. Bh4 {[%clk 0:01:33]}  Na5 {[%clk 0:01:54]} 21. Na3 {[%clk 0:01:30]}  Nb3 {[%clk 0:01:54]} 22. Rad1 {[%clk 0:01:31]}  Rfe8 {[%clk 0:01:48]} 23. h3 {[%clk 0:01:28]}  Re4 {[%clk 0:01:47]} 24. Bg3 {[%clk 0:01:26]}  Rbe8 {[%clk 0:01:48]} 25. Nc2 {[%clk 0:01:05]}  c6 {[%clk 0:01:23]} 26. Rfe1 {[%clk 0:00:58]}  f5 {[%clk 0:01:20]} 27. Qd3 {[%clk 0:00:40]}  f4 {[%clk 0:01:16]} 28. Rxe4 {[%clk 0:00:38]}  Rxe4 {[%clk 0:00:35]} 29. f3 {[%clk 0:00:38]}  Re6 {[%clk 0:00:28]} 30. Bxf4 {[%clk 0:00:37]}  Qf7 {[%clk 0:00:29]} 31. Bg3 {[%clk 0:00:33]}  Bd8 {[%clk 0:00:28]} 32. Re1 {[%clk 0:00:31]}  Bg5 {[%clk 0:00:28]} 33. h4 {[%clk 0:00:17]}  Bd2 {[%clk 0:00:26]} 34. Rxe6 {[%clk 0:00:12]}  Qxe6 {[%clk 0:00:27]} 35. Kh2 {[%clk 0:00:12]}  Bc1 {[%clk 0:00:26]} 36. Nb4 {[%clk 0:00:11]}  Nd2 {[%clk 0:00:25]} 37. Na6 {[%clk 0:00:04]}  g5 {[%clk 0:00:12]} 38. Nc5 {[%clk 0:00:04]}  Qf7 {[%clk 0:00:12]} 39. b3 {[%clk 0:00:04]}  gxh4 {[%clk 0:00:11]} 40. Bxh4 {[%clk 0:00:05]}  Qh5 {[%clk 0:00:12]} 41. g3 {[%clk 0:00:04]}  Nxf3+ {[%clk 0:00:11]} 42. Kh3 {[%clk 0:00:05]}  Nxh4 {[%clk 0:00:11]} 43. gxh4 {[%clk 0:00:06]}  Bf4 {[%clk 0:00:08]} 44. Kg2 {[%clk 0:00:06]}  Qg4+ {[%clk 0:00:08]} 45. Kf2 {[%clk 0:00:06]}  Qxh4+ {[%clk 0:00:08]} 46. Ke2 {[%clk 0:00:07]}  Qg4+ {[%clk 0:00:08]} 47. Kf1 {[%clk 0:00:07]}  Bg3 {[%clk 0:00:07]} 48. Kg2 {[%clk 0:00:07]}  Bh4+ {[%clk 0:00:06]} 49. Kh2 {[%clk 0:00:07]}  Bg5 {[%clk 0:00:06]} 50. Kh1 {[%clk 0:00:07]}  Bf4 {[%clk 0:00:07]} 51. c4 {[%clk 0:00:07]}  Qh4+ {[%clk 0:00:06]} 52. Kg2 {[%clk 0:00:07]}  Qg4+ {[%clk 0:00:06]} 53. Kf2 {[%clk 0:00:08]}  h5 {[%clk 0:00:06]} 54. Qf3 {[%clk 0:00:07]}  Qg5 {[%clk 0:00:06]} 55. cxd5 {[%clk 0:00:07]}  cxd5 {[%clk 0:00:07]} 56. Ne6 {[%clk 0:00:08]}  Qh4+ {[%clk 0:00:07]} 57. Kf1 {[%clk 0:00:09]}  Bd6 {[%clk 0:00:04]} 58. Qxd5 {[%clk 0:00:08]}  Qh3+ {[%clk 0:00:04]} 59. Ke2 {[%clk 0:00:09]}  Qg4+ {[%clk 0:00:04]} 60. Kd3 {[%clk 0:00:09]}  Qg3+ {[%clk 0:00:04]} 61. Kc4 {[%clk 0:00:09]}  Kh7 {[%clk 0:00:03]} 62. Qxh5+ {[%clk 0:00:10]}  Kg8 {[%clk 0:00:03]} 63. Qe8+ {[%clk 0:00:10]}  Kh7 {[%clk 0:00:03]} 64. Qf7+ {[%clk 0:00:11]}  Kh6 {[%clk 0:00:03]} 65. Qf6+ {[%clk 0:00:11]}  Kh5 {[%clk 0:00:03]} 66. Kd5 {[%clk 0:00:11]}  Bb4 {[%clk 0:00:02]} 67. Ng7+ {[%clk 0:00:11]}  Kg4 {[%clk 0:00:02]} 68. Qf5+ {[%clk 0:00:11]}  Kh4 {[%clk 0:00:02]} 69. Qh5# {[%clk 0:00:12]} 1-0


[Site "https://www.chess.com"]

[Event "Titled Tuesday Blitz June 22 2021"]
[White "Lomasov, Semyon"]
[Black "Sjugirov, Sanan"]
[WhiteFideId "24164879"]
[BlackFideId "4189302"]
[WhiteElo "2445"]
[BlackElo "2472"]
[Result "1-0"]
[Round "06"]
[TimeControl "180+1"]
[Date "2021.06.22"]
[WhiteClock "0:00:06"]
[BlackClock "0:00:06"]

1. e4 {[%clk 0:02:58]}  c5 {[%clk 0:02:59]} 2. Nc3 {[%clk 0:02:58]}  d6 {[%clk 0:02:55]} 3. Nf3 {[%clk 0:02:57]}  a6 {[%clk 0:02:54]} 4. g3 {[%clk 0:02:57]}  Nc6 {[%clk 0:02:54]} 5. d4 {[%clk 0:02:56]}  cxd4 {[%clk 0:02:43]} 6. Nxd4 {[%clk 0:02:57]}  g6 {[%clk 0:02:43]} 7. Bg2 {[%clk 0:02:57]}  Bg7 {[%clk 0:02:43]} 8. Be3 {[%clk 0:02:51]}  Bd7 {[%clk 0:02:43]} 9. O-O {[%clk 0:02:47]}  Nf6 {[%clk 0:02:42]} 10. h3 {[%clk 0:02:46]}  O-O {[%clk 0:02:35]} 11. Nxc6 {[%clk 0:02:23]}  Bxc6 {[%clk 0:02:32]} 12. Nd5 {[%clk 0:02:23]}  Nxd5 {[%clk 0:01:58]} 13. exd5 {[%clk 0:02:23]}  Bb5 {[%clk 0:01:57]} 14. Re1 {[%clk 0:02:19]}  Bxb2 {[%clk 0:01:56]} 15. a4 {[%clk 0:02:15]}  Bd7 {[%clk 0:01:51]} 16. Bh6 {[%clk 0:02:08]}  Bxa1 {[%clk 0:01:39]} 17. Qxa1 {[%clk 0:02:06]}  f6 {[%clk 0:01:39]} 18. Bxf8 {[%clk 0:02:06]}  Kxf8 {[%clk 0:01:39]} 19. Be4 {[%clk 0:01:46]}  Rc8 {[%clk 0:01:37]} 20. h4 {[%clk 0:01:44]}  Qa5 {[%clk 0:01:35]} 21. h5 {[%clk 0:01:35]}  Kf7 {[%clk 0:01:24]} 22. Qc1 {[%clk 0:01:25]}  Qc3 {[%clk 0:00:51]} 23. Bd3 {[%clk 0:01:08]}  Bxa4 {[%clk 0:00:24]} 24. Qe3 {[%clk 0:00:36]}  Rc7 {[%clk 0:00:20]} 25. hxg6+ {[%clk 0:00:30]}  hxg6 {[%clk 0:00:20]} 26. Qe4 {[%clk 0:00:28]}  f5 {[%clk 0:00:17]} 27. Qe6+ {[%clk 0:00:24]}  Kg7 {[%clk 0:00:17]} 28. g4 {[%clk 0:00:22]}  Qf6 {[%clk 0:00:14]} 29. gxf5 {[%clk 0:00:15]}  Qxe6 {[%clk 0:00:12]} 30. Rxe6 {[%clk 0:00:16]}  gxf5 {[%clk 0:00:11]} 31. Bxf5 {[%clk 0:00:16]}  Kf8 {[%clk 0:00:07]} 32. Re2 {[%clk 0:00:10]}  Rc5 {[%clk 0:00:07]} 33. Rd2 {[%clk 0:00:07]}  Bb5 {[%clk 0:00:07]} 34. f3 {[%clk 0:00:06]}  Bc4 {[%clk 0:00:06]} 35. Be6 {[%clk 0:00:06]}  a5 {[%clk 0:00:06]} 36. Rg2 {[%clk 0:00:06]} 1-0


[Site "https://www.chess.com"]

[Event "Titled Tuesday Blitz June 22 2021"]
[White "Makhnev, Denis"]
[Black "Timofeev, Artyom"]
[WhiteFideId "13707647"]
[BlackFideId "4140419"]
[WhiteElo "2549"]
[BlackElo "2582"]
[Result "0-1"]
[Round "06"]
[TimeControl "180+1"]
[Date "2021.06.22"]
[WhiteClock "0:00:19"]
[BlackClock "0:00:48"]

1. Nf3 {[%clk 0:02:56]}  Nf6 {[%clk 0:02:59]} 2. c4 {[%clk 0:02:55]}  c5 {[%clk 0:02:53]} 3. Nc3 {[%clk 0:02:55]}  g6 {[%clk 0:02:53]} 4. g3 {[%clk 0:02:53]}  Bg7 {[%clk 0:02:53]} 5. Bg2 {[%clk 0:02:53]}  O-O {[%clk 0:02:53]} 6. O-O {[%clk 0:02:54]}  Nc6 {[%clk 0:02:53]} 7. d4 {[%clk 0:02:54]}  cxd4 {[%clk 0:02:54]} 8. Nxd4 {[%clk 0:02:54]}  Ng4 {[%clk 0:02:54]} 9. e3 {[%clk 0:02:51]}  d6 {[%clk 0:02:54]} 10. b3 {[%clk 0:02:50]}  Nxd4 {[%clk 0:02:52]} 11. exd4 {[%clk 0:02:50]}  Nh6 {[%clk 0:02:53]} 12. Bb2 {[%clk 0:02:46]}  Nf5 {[%clk 0:02:52]} 13. Nd5 {[%clk 0:02:40]}  Bd7 {[%clk 0:02:44]} 14. Re1 {[%clk 0:02:39]}  Re8 {[%clk 0:02:43]} 15. Rc1 {[%clk 0:02:34]}  Rb8 {[%clk 0:02:38]} 16. Qd3 {[%clk 0:02:22]}  b5 {[%clk 0:02:33]} 17. Bc3 {[%clk 0:02:05]}  bxc4 {[%clk 0:02:32]} 18. bxc4 {[%clk 0:02:06]}  h5 {[%clk 0:01:57]} 19. c5 {[%clk 0:01:55]}  Bb5 {[%clk 0:01:49]} 20. Qe4 {[%clk 0:01:50]}  Bc6 {[%clk 0:01:42]} 21. Nf6+ {[%clk 0:00:50]}  Bxf6 {[%clk 0:01:40]} 22. Qxc6 {[%clk 0:00:51]}  Nxd4 {[%clk 0:01:24]} 23. Bxd4 {[%clk 0:00:50]}  Bxd4 {[%clk 0:01:24]} 24. cxd6 {[%clk 0:00:50]}  Qxd6 {[%clk 0:01:23]} 25. Qxd6 {[%clk 0:00:50]}  exd6 {[%clk 0:01:23]} 26. Rxe8+ {[%clk 0:00:50]}  Rxe8 {[%clk 0:01:22]} 27. Rc2 {[%clk 0:00:37]}  Re1+ {[%clk 0:01:21]} 28. Bf1 {[%clk 0:00:37]}  Bb6 {[%clk 0:01:16]} 29. Kg2 {[%clk 0:00:37]}  d5 {[%clk 0:01:17]} 30. Rd2 {[%clk 0:00:33]}  d4 {[%clk 0:01:14]} 31. Bc4 {[%clk 0:00:33]}  Kf8 {[%clk 0:01:06]} 32. h4 {[%clk 0:00:25]}  Rc1 {[%clk 0:01:04]} 33. Bb3 {[%clk 0:00:24]}  Ke7 {[%clk 0:01:04]} 34. Kf3 {[%clk 0:00:22]}  Rc3+ {[%clk 0:00:59]} 35. Ke4 {[%clk 0:00:21]}  f5+ {[%clk 0:00:54]} 36. Kf4 {[%clk 0:00:19]}  Kf6 {[%clk 0:00:48]} 0-1


[Site "https://www.chess.com"]

[Event "Titled Tuesday Blitz June 22 2021"]
[White "Martinez Alcantara, Jose Eduardo"]
[Black "Donchenko, Alexander"]
[WhiteFideId "3805662"]
[BlackFideId "24603295"]
[WhiteElo "2690"]
[BlackElo "2553"]
[Result "1/2-1/2"]
[Round "06"]
[TimeControl "180+1"]
[Date "2021.06.22"]
[WhiteClock "0:00:08"]
[BlackClock "0:00:03"]

1. e4 {[%clk 0:03:00]}  c6 {[%clk 0:03:00]} 2. Nf3 {[%clk 0:02:59]}  d5 {[%clk 0:03:01]} 3. d3 {[%clk 0:03:00]}  dxe4 {[%clk 0:03:01]} 4. dxe4 {[%clk 0:03:01]}  Qxd1+ {[%clk 0:03:01]} 5. Kxd1 {[%clk 0:03:01]}  Nf6 {[%clk 0:03:02]} 6. Nbd2 {[%clk 0:03:00]}  Nbd7 {[%clk 0:02:59]} 7. Bc4 {[%clk 0:02:49]}  e6 {[%clk 0:02:53]} 8. Ne1 {[%clk 0:02:44]}  h5 {[%clk 0:02:48]} 9. Nd3 {[%clk 0:02:28]}  h4 {[%clk 0:02:47]} 10. h3 {[%clk 0:02:27]}  a5 {[%clk 0:02:41]} 11. a4 {[%clk 0:02:26]}  Nc5 {[%clk 0:02:38]} 12. Nxc5 {[%clk 0:02:11]}  Bxc5 {[%clk 0:02:39]} 13. Ke2 {[%clk 0:02:11]}  e5 {[%clk 0:02:33]} 14. Rd1 {[%clk 0:01:28]}  Ke7 {[%clk 0:02:03]} 15. Nb3 {[%clk 0:01:27]}  Ba7 {[%clk 0:01:51]} 16. f3 {[%clk 0:01:21]}  Bb6 {[%clk 0:01:31]} 17. Be3 {[%clk 0:01:13]}  Bxe3 {[%clk 0:01:31]} 18. Kxe3 {[%clk 0:01:14]}  Nh5 {[%clk 0:01:27]} 19. Bf1 {[%clk 0:01:14]}  Nf4 {[%clk 0:01:15]} 20. Nc5 {[%clk 0:01:09]}  b6 {[%clk 0:01:12]} 21. Nd3 {[%clk 0:01:09]}  Nxd3 {[%clk 0:01:08]} 22. Rxd3 {[%clk 0:01:08]}  Be6 {[%clk 0:01:07]} 23. Rc3 {[%clk 0:01:04]}  c5 {[%clk 0:01:04]} 24. Bb5 {[%clk 0:00:52]}  Rad8 {[%clk 0:01:02]} 25. Rd3 {[%clk 0:00:53]}  Rxd3+ {[%clk 0:00:57]} 26. Bxd3 {[%clk 0:00:54]}  Rd8 {[%clk 0:00:49]} 27. c3 {[%clk 0:00:53]}  Bb3 {[%clk 0:00:41]} 28. Ra3 {[%clk 0:00:40]}  c4 {[%clk 0:00:39]} 29. Be2 {[%clk 0:00:40]}  g5 {[%clk 0:00:36]} 30. Ra1 {[%clk 0:00:40]}  Rd6 {[%clk 0:00:35]} 31. Ra3 {[%clk 0:00:40]}  Kd7 {[%clk 0:00:35]} 32. Ra1 {[%clk 0:00:40]}  Kc6 {[%clk 0:00:35]} 33. Bf1 {[%clk 0:00:37]}  Kc5 {[%clk 0:00:35]} 34. Be2 {[%clk 0:00:37]}  Bc2 {[%clk 0:00:33]} 35. Kf2 {[%clk 0:00:32]}  Rd8 {[%clk 0:00:18]} 36. Ke3 {[%clk 0:00:32]}  f6 {[%clk 0:00:18]} 37. Kf2 {[%clk 0:00:31]}  Rd6 {[%clk 0:00:18]} 38. Ke3 {[%clk 0:00:31]}  Bb3 {[%clk 0:00:18]} 39. Ra3 {[%clk 0:00:27]}  Bd1 {[%clk 0:00:18]} 40. Bf1 {[%clk 0:00:22]}  Bc2 {[%clk 0:00:18]} 41. Be2 {[%clk 0:00:20]}  Bd3 {[%clk 0:00:18]} 42. Ra1 {[%clk 0:00:16]}  Bc2 {[%clk 0:00:07]} 43. Kf2 {[%clk 0:00:14]}  Bb3 {[%clk 0:00:07]} 44. Ke3 {[%clk 0:00:08]}  Rd8 {[%clk 0:00:06]} 45. Ra3 {[%clk 0:00:07]}  Rd7 {[%clk 0:00:07]} 46. Ra1 {[%clk 0:00:07]}  Rd6 {[%clk 0:00:07]} 47. Ra3 {[%clk 0:00:07]}  Bd1 {[%clk 0:00:05]} 48. Bf1 {[%clk 0:00:08]}  Bc2 {[%clk 0:00:05]} 49. Be2 {[%clk 0:00:08]}  Bd1 {[%clk 0:00:03]} 1/2-1/2


[Site "https://www.chess.com"]

[Event "Titled Tuesday Blitz June 22 2021"]
[White "Morchiashvili, Bachana"]
[Black "Muradli, Mahammad"]
[WhiteFideId "13602535"]
[BlackFideId "13409301"]
[WhiteElo "2278"]
[BlackElo "2482"]
[Result "0-1"]
[Round "06"]
[TimeControl "180+1"]
[Date "2021.06.22"]
[WhiteClock "0:00:26"]
[BlackClock "0:00:37"]

1. d4 {[%clk 0:03:00]}  d6 {[%clk 0:02:59]} 2. Nf3 {[%clk 0:03:01]}  g6 {[%clk 0:03:00]} 3. c4 {[%clk 0:03:01]}  Bg7 {[%clk 0:03:01]} 4. Nc3 {[%clk 0:03:02]}  Nd7 {[%clk 0:03:01]} 5. e4 {[%clk 0:03:02]}  e5 {[%clk 0:03:02]} 6. Be2 {[%clk 0:03:01]}  Ne7 {[%clk 0:03:02]} 7. O-O {[%clk 0:03:01]}  O-O {[%clk 0:03:03]} 8. d5 {[%clk 0:02:59]}  f5 {[%clk 0:03:02]} 9. Ng5 {[%clk 0:02:59]}  Nf6 {[%clk 0:02:56]} 10. Bf3 {[%clk 0:02:56]}  f4 {[%clk 0:02:45]} 11. b4 {[%clk 0:02:47]}  h6 {[%clk 0:02:40]} 12. Ne6 {[%clk 0:02:46]}  Bxe6 {[%clk 0:02:41]} 13. dxe6 {[%clk 0:02:47]}  Nc6 {[%clk 0:02:42]} 14. Nd5 {[%clk 0:02:31]}  Re8 {[%clk 0:02:41]} 15. b5 {[%clk 0:02:12]}  Nd4 {[%clk 0:02:39]} 16. e7 {[%clk 0:02:11]}  Qd7 {[%clk 0:02:39]} 17. a4 {[%clk 0:01:52]}  c6 {[%clk 0:02:31]} 18. bxc6 {[%clk 0:01:50]}  bxc6 {[%clk 0:02:32]} 19. Nxf6+ {[%clk 0:01:42]}  Bxf6 {[%clk 0:02:33]} 20. Bg4 {[%clk 0:01:38]}  Qxe7 {[%clk 0:02:32]} 21. Bb2 {[%clk 0:01:38]}  h5 {[%clk 0:02:32]} 22. Bxd4 {[%clk 0:01:36]}  exd4 {[%clk 0:02:26]} 23. Bf3 {[%clk 0:01:34]}  Be5 {[%clk 0:02:25]} 24. c5 {[%clk 0:01:34]}  dxc5 {[%clk 0:02:23]} 25. Rc1 {[%clk 0:01:34]}  Rab8 {[%clk 0:02:22]} 26. Qd3 {[%clk 0:01:33]}  Rb4 {[%clk 0:02:19]} 27. Qa6 {[%clk 0:01:33]}  Qd6 {[%clk 0:02:03]} 28. Qxa7 {[%clk 0:01:27]}  c4 {[%clk 0:02:03]} 29. a5 {[%clk 0:01:22]}  d3 {[%clk 0:02:00]} 30. Rfd1 {[%clk 0:01:17]}  d2 {[%clk 0:02:00]} 31. Rc2 {[%clk 0:01:14]}  c3 {[%clk 0:02:00]} 32. h4 {[%clk 0:01:12]}  Qd3 {[%clk 0:01:55]} 33. Qc5 {[%clk 0:00:58]}  Rc4 {[%clk 0:01:54]} 34. Rdxd2 {[%clk 0:00:50]}  Rxc5 {[%clk 0:01:14]} 35. Rxd3 {[%clk 0:00:50]}  Rxa5 {[%clk 0:01:15]} 36. Rd7 {[%clk 0:00:48]}  Kf8 {[%clk 0:01:10]} 37. Be2 {[%clk 0:00:48]}  Re7 {[%clk 0:01:10]} 38. Rd8+ {[%clk 0:00:48]}  Kg7 {[%clk 0:01:10]} 39. Bc4 {[%clk 0:00:49]}  Ra4 {[%clk 0:01:03]} 40. Bb3 {[%clk 0:00:48]}  Rxe4 {[%clk 0:01:02]} 41. Rg8+ {[%clk 0:00:47]}  Kh7 {[%clk 0:01:02]} 42. Rc8 {[%clk 0:00:47]}  Rb4 {[%clk 0:00:51]} 43. Bg8+ {[%clk 0:00:47]}  Kg7 {[%clk 0:00:51]} 44. Ba2 {[%clk 0:00:46]}  Rb2 {[%clk 0:00:36]} 45. Rxb2 {[%clk 0:00:46]}  cxb2 {[%clk 0:00:37]} 46. Rxc6 {[%clk 0:00:47]}  Bf6 {[%clk 0:00:37]} 47. Rb6 {[%clk 0:00:44]}  Re1+ {[%clk 0:00:35]} 48. Kh2 {[%clk 0:00:44]}  Ra1 {[%clk 0:00:36]} 49. Rb7+ {[%clk 0:00:42]}  Kh6 {[%clk 0:00:36]} 50. Bg8 {[%clk 0:00:42]}  Bg7 {[%clk 0:00:36]} 51. g4 {[%clk 0:00:37]}  fxg3+ {[%clk 0:00:35]} 52. fxg3 {[%clk 0:00:36]}  b1=Q {[%clk 0:00:35]} 53. Rxb1 {[%clk 0:00:36]}  Rxb1 {[%clk 0:00:36]} 54. Bd5 {[%clk 0:00:36]}  Be5 {[%clk 0:00:36]} 55. Kh3 {[%clk 0:00:36]}  Rb2 {[%clk 0:00:37]} 56. Be4 {[%clk 0:00:35]}  Rb3 {[%clk 0:00:37]} 57. Kh2 {[%clk 0:00:33]}  Rxg3 {[%clk 0:00:37]} 58. Kh1 {[%clk 0:00:33]}  g5 {[%clk 0:00:38]} 59. hxg5+ {[%clk 0:00:30]}  Kxg5 {[%clk 0:00:39]} 60. Bd5 {[%clk 0:00:31]}  h4 {[%clk 0:00:40]} 61. Bg2 {[%clk 0:00:30]}  Kf4 {[%clk 0:00:41]} 62. Bd5 {[%clk 0:00:29]}  Ke3 {[%clk 0:00:42]} 63. Bg2 {[%clk 0:00:30]}  Kf2 {[%clk 0:00:42]} 64. Kh2 {[%clk 0:00:27]}  Re3+ {[%clk 0:00:35]} 65. Kh1 {[%clk 0:00:26]}  Re1+ {[%clk 0:00:36]} 66. Bf1 {[%clk 0:00:26]}  Rxf1# {[%clk 0:00:37]} 0-1


[Site "https://www.chess.com"]